[Event "1000GM Winter IM Norm-2 2024"]
[Site "Sunnyvale/"]
[Date "2024.01.03"]
[Round "1.1"]
[White "Zhou, Ruoyu"]
[Black "Arenas, David"]
[Result "0-1"]
[ECO "B72"]
[WhiteElo "2112"]
[BlackElo "2406"]
[Annotator "RC"]
[PlyCount "106"]
[EventDate "2023.12.14"]
[EventType "schev"]
[EventCountry "USA"]
[SourceTitle "playchess.com"]
[Source "ChessBase"]
[SourceQuality "1"]
[TimeControl "5400+30"]

1. e4 {[%emt 0:00:02]} c5 {[%emt 0:07:26]} 2. Nf3 {[%emt 0:00:08]} d6 {[%emt 0:00:06]} 3. d4 {[%emt 0:00:06]} Nf6 {[%emt 0:00:08]} 4. Nc3 {[%emt 0:00:08]} cxd4 {[%emt 0:00:05]} 5. Nxd4 {[%emt 0:00:06]} g6 {[%emt 0:00:04]} 6. Be3 {[%emt 0:00:10]} Nc6 {[%emt 0:00:03]} 7. f3 {[%emt 0:00:10]} h5 {[%emt 0:00:06]} 8. Qd2 {[%emt 0:06:12]} Nxd4 {[%emt 0:00:37]} 9. Bxd4 {[%emt 0:00:34]} Bh6 {[%emt 0:00:12]} 10. Be3 {[%emt 0:00:37]} Bxe3 {[%emt 0:00:21]} 11. Qxe3 {[%emt 0:00:03]} Be6 {[%emt 0:00:14]} 12. Bb5+ {[%emt 0:09:57]} Kf8 {[%emt 0:00:36]} 13. O-O {[%emt 0:04:19]} Qa5 {[%emt 0:00:29]} 14. Kh1 {[%emt 0:01:33]} Rc8 {[%emt 0:01:37]} 15. Be2 {[%emt 0:03:13]} Qc5 {[%emt 0:00:38]} 16. Qd2 {[%emt 0:03:14]} h4 {[%emt 0:05:02]} 17. f4 {[%emt 0:09:28]} Qb4 {[%emt 0:02:28]} 18. Bd3 {[%emt 0:22:52]} h3 {[%emt 0:02:39]} 19. g3 {[%emt 0:08:33]} Qxb2 {[%emt 0:02:54]} 20. Ne2 {[%emt 0:02:40]} Qb6 {[%emt 0:07:51]} 21. Rae1 {[%emt 0:06:58]} d5 {[%emt 0:09:30]} 22. e5 {[%emt 0:01:57]} Ng4 {[%emt 0:00:11]} 23. Ng1 {[%emt 0:02:06]} d4 {[%emt 0:01:01]} 24. Nf3 {[%emt 0:06:54]} Ne3 {[%emt 0:00:21]} 25. Rf2 {[%emt 0:01:01]} Bd5 {[%emt 0:00:17]} 26. Kg1 {[%emt 0:01:05]} Bxf3 {[%emt 0:02:29]} 27. Rxf3 {[%emt 0:00:14]} e6 {[%emt 0:00:01]} 28. Rfxe3 {[%emt 0:03:23]} dxe3 {[%emt 0:00:07]} 29. Qxe3 {[%emt 0:00:06]} Qxe3+ {[%emt 0:01:37]} 30. Rxe3 {[%emt 0:00:02]} Ke7 {[%emt 0:00:04]} 31. Re4 {[%emt 0:01:03]} Rc5 {[%emt 0:02:44]} 32. Rb4 {[%emt 0:01:11]} b6 {[%emt 0:00:17]} 33. Kf2 {[%emt 0:01:02]} g5 {[%emt 0:00:19]} 34. Ra4 {[%emt 0:02:10]} a5 {[%emt 0:00:11]} 35. Rd4 {[%emt 0:00:44]} gxf4 {[%emt 0:00:35]} 36. gxf4 {[%emt 0:00:02]} Rg8 {[%emt 0:00:06]} 37. Be4 {[%emt 0:00:23]} Rg4 {[%emt 0:02:45]} 38. Kf3 {[%emt 0:00:14]} Rg2 {[%emt 0:00:09]} 39. a4 {[%emt 0:01:29]} Rc3+ {[%emt 0:00:16]} 40. Bd3 {[%emt 0:00:28]} Rgxc2 {[%emt 0:00:13]} 41. f5 {[%emt 0:01:12]} exf5 {[%emt 0:00:09]} 42. Rd6 {[%emt 0:00:53]} Rd2 {[%emt 0:00:53]} 43. Ke3 {[%emt 0:00:15]} Rdxd3+ {[%emt 0:00:05]} 44. Rxd3 {[%emt 0:00:09]} Rxd3+ {[%emt 0:00:03]} 45. Kxd3 {[%emt 0:00:28]} Ke6 {[%emt 0:00:12]} 46. Kd4 {[%emt 0:00:10]} f4 {[%emt 0:00:09]} 47. Ke4 {[%emt 0:00:15]} f3 {[%emt 0:00:02]} 48. Kxf3 {[%emt 0:00:24]} Kxe5 {[%emt 0:00:09]} 49. Ke3 {[%emt 0:00:13]} f5 {[%emt 0:00:10]} 50. Kd3 {[%emt 0:00:21]} f4 {[%emt 0:00:12]} 51. Kd2 {[%emt 0:01:02]} b5 {[%emt 0:00:10]} 52. axb5 {[%emt 0:00:11]} Kd5 {[%emt 0:00:28]} 53. Kd3 {[%emt 0:00:11]} a4 {[%emt 0:57:29]} 0-1

[Event "1000GM Winter IM Norm-2 2024"]
[Site "Sunnyvale/"]
[Date "2024.01.03"]
[Round "1.2"]
[White "Hajnal, Zoltan"]
[Black "Yao, Hanchi"]
[Result "1-0"]
[ECO "B56"]
[WhiteElo "2383"]
[BlackElo "1998"]
[Annotator "RC"]
[PlyCount "73"]
[EventDate "2023.12.14"]
[EventType "schev"]
[EventCountry "USA"]
[SourceTitle "playchess.com"]
[Source "ChessBase"]
[SourceQuality "1"]
[TimeControl "5400+30"]

1. e4 {[%emt 0:00:03]} c5 {[%emt 0:05:56]} 2. Nf3 {[%emt 0:00:24]} d6 {[%emt 0:00:20]} 3. d4 {[%emt 0:00:13]} Nf6 {[%emt 0:00:09]} 4. Nc3 {[%emt 0:00:08]} cxd4 {[%emt 0:00:06]} 5. Nxd4 {[%emt 0:00:12]} Nc6 {[%emt 0:00:13]} 6. g3 {[%emt 0:05:56]} e5 {[%emt 0:01:52]} 7. Nde2 {[%emt 0:01:03]} Bg4 {[%emt 0:05:35]} 8. Bg2 {[%emt 0:02:11]} Be7 {[%emt 0:07:08]} 9. h3 {[%emt 0:01:23]} Be6 {[%emt 0:05:28]} 10. O-O {[%emt 0:00:45]} Qd7 {[%emt 0:09:18]} 11. Kh2 {[%emt 0:01:52]} h5 {[%emt 0:00:58]} 12. Nd5 {[%emt 0:02:00]} h4 {[%emt 0:08:30]} 13. g4 {[%emt 0:03:48]} g5 {[%emt 0:05:28]} 14. Be3 {[%emt 0:09:53]} Nh7 {[%emt 0:03:47]} 15. Qd2 {[%emt 0:01:03]} Bd8 {[%emt 0:02:32]} 16. Rfd1 {[%emt 0:02:44]} Bxd5 {[%emt 0:03:24]} 17. exd5 {[%emt 0:02:44]} Nb8 {[%emt 0:38:16]} 18. Be4 {[%emt 0:01:02]} Qe7 {[%emt 0:00:00]} 19. Qd3 {[%emt 0:05:49]} Nf8 {[%emt 0:00:00]} 20. Nc3 {[%emt 0:01:09]} a6 {[%emt 0:00:00]} 21. Bf5 {[%emt 0:00:25]} Nfd7 {[%emt 0:00:00]} 22. Ne4 {[%emt 0:00:43]} f6 {[%emt 0:00:00]} 23. Qa3 {[%emt 0:06:43]} Bc7 {[%emt 0:00:00]} 24. Qc3 {[%emt 0:00:08]} Kd8 {[%emt 0:00:00]} 25. a4 {[%emt 0:06:07]} a5 {[%emt 0:00:00]} 26. b4 {[%emt 0:00:08]} b6 {[%emt 0:00:00]} 27. Rdb1 {[%emt 0:03:36]} axb4 {[%emt 0:00:00]} 28. Rxb4 {[%emt 0:01:15]} Na6 {[%emt 0:00:00]} 29. Rc4 {[%emt 0:00:20]} Ndc5 {[%emt 0:00:00]} 30. a5 {[%emt 0:00:54]} b5 {[%emt 0:00:00]} 31. Rxc5 {[%emt 0:03:29]} Nxc5 {[%emt 0:00:00]} 32. Bxc5 {[%emt 0:00:20]} dxc5 {[%emt 0:00:00]} 33. d6 {[%emt 0:00:06]} Bxd6 {[%emt 0:00:00]} 34. Rd1 {[%emt 0:00:03]} Kc7 {[%emt 0:00:00]} 35. Rxd6 {[%emt 0:00:29]} Qxd6 {[%emt 0:00:00]} 36. Nxd6 {[%emt 0:00:04]} Kxd6 {[%emt 0:00:00]} 37. Qd3+ {[%emt 0:00:07]} 1-0

[Event "1000GM Winter IM Norm-2 2024"]
[Site "Sunnyvale/"]
[Date "2024.01.03"]
[Round "1.3"]
[White "Sivakumar, Shaaketh"]
[Black "Zuluaga Mancilla, Cesar"]
[Result "1-0"]
[ECO "B40"]
[WhiteElo "2364"]
[BlackElo "2251"]
[Annotator "RC"]
[PlyCount "171"]
[EventDate "2023.12.14"]
[EventType "schev"]
[EventCountry "USA"]
[SourceTitle "playchess.com"]
[Source "ChessBase"]
[SourceQuality "1"]
[TimeControl "5400+30"]

1. e4 {[%emt 0:00:03]} c5 {[%emt 0:00:00]} 2. Nf3 {[%emt 0:00:18]} e6 {[%emt 0:00:13]} 3. g3 {[%emt 0:00:08]} Nf6 {[%emt 0:01:58]} 4. Qe2 {[%emt 0:00:25]} d6 {[%emt 0:00:47]} 5. Bg2 {[%emt 0:00:18]} e5 {[%emt 0:01:09]} 6. O-O {[%emt 0:00:17]} g6 {[%emt 0:00:15]} 7. b4 {[%emt 0:03:36]} cxb4 {[%emt 0:07:29]} 8. a3 {[%emt 0:01:01]} bxa3 {[%emt 0:03:21]} 9. d4 {[%emt 0:08:09]} Nc6 {[%emt 0:02:46]} 10. dxe5 {[%emt 0:11:55]} dxe5 {[%emt 0:00:45]} 11. Rd1 {[%emt 0:00:13]} Bd7 {[%emt 0:00:59]} 12. Nxa3 {[%emt 0:01:17]} Be7 {[%emt 0:04:25]} 13. Bb2 {[%emt 0:10:18]} Qb8 {[%emt 0:05:07]} 14. h3 {[%emt 0:01:14]} O-O {[%emt 0:09:29]} 15. Nc4 {[%emt 0:00:33]} Qc8 {[%emt 0:02:07]} 16. Kh2 {[%emt 0:02:30]} Be6 {[%emt 0:00:19]} 17. Ncxe5 {[%emt 0:01:06]} Rd8 {[%emt 0:01:15]} 18. Nxc6 {[%emt 0:01:16]} Qxc6 {[%emt 0:00:42]} 19. e5 {[%emt 0:10:29]} Ne8 {[%emt 0:07:16]} 20. Nd4 {[%emt 0:03:18]} Qb6 {[%emt 0:00:01]} 21. Rab1 {[%emt 0:00:45]} Ba2 {[%emt 0:00:54]} 22. Qe4 {[%emt 0:16:59]} Bxb1 {[%emt 0:01:29]} 23. Rxb1 {[%emt 0:00:01]} Ng7 {[%emt 0:04:55]} 24. c3 {[%emt 0:01:37]} Rab8 {[%emt 0:04:56]} 25. Ba3 {[%emt 0:05:27]} Qc7 {[%emt 0:05:52]} 26. Nb5 {[%emt 0:00:26]} Qd7 {[%emt 0:00:08]} 27. Nd6 {[%emt 0:00:07]} Ne8 {[%emt 0:02:42]} 28. Rd1 {[%emt 0:00:26]} Nxd6 {[%emt 0:12:30]} 29. exd6 {[%emt 0:00:07]} Bf6 {[%emt 0:00:14]} 30. c4 {[%emt 0:00:57]} b6 {[%emt 0:00:09]} 31. Rd3 {[%emt 0:02:40]} Re8 {[%emt 0:00:26]} 32. Qf4 {[%emt 0:01:11]} Be5 {[%emt 0:00:26]} 33. Qh4 {[%emt 0:02:21]} Kg7 {[%emt 0:06:34]} 34. Qg5 {[%emt 0:00:51]} Rbd8 {[%emt 0:00:33]} 35. Rd5 {[%emt 0:00:54]} f6 {[%emt 0:02:08]} 36. Qd2 {[%emt 0:01:23]} Qa4 {[%emt 0:06:07]} 37. Qd3 {[%emt 0:00:19]} Ba1 {[%emt 0:00:33]} 38. Rb5 {[%emt 0:02:24]} Re1 {[%emt 0:01:38]} 39. Bf3 {[%emt 0:02:13]} Be5 {[%emt 0:01:19]} 40. d7 {[%emt 0:00:56]} a6 {[%emt 0:01:04]} 41. Rd5 {[%emt 0:00:08]} Bc7 {[%emt 0:00:45]} 42. Bg4 {[%emt 0:04:33]} Qc6 {[%emt 0:00:33]} 43. Bb4 {[%emt 0:00:18]} Re5 {[%emt 0:02:36]} 44. Rxe5 {[%emt 0:00:04]} fxe5 {[%emt 0:01:04]} 45. Be7 {[%emt 0:00:09]} Kf7 {[%emt 0:00:32]} 46. Bxd8 {[%emt 0:00:08]} Bxd8 {[%emt 0:00:03]} 47. Bf3 {[%emt 0:00:40]} Qc5 {[%emt 0:00:23]} 48. Qe2 {[%emt 0:00:43]} Ke7 {[%emt 0:00:21]} 49. Bd5 {[%emt 0:01:21]} Qd4 {[%emt 0:00:25]} 50. Qf3 {[%emt 0:00:45]} Kxd7 {[%emt 0:01:40]} 51. Qf7+ {[%emt 0:00:08]} Be7 {[%emt 0:00:12]} 52. Kg2 {[%emt 0:00:02]} Kd8 {[%emt 0:01:06]} 53. Qg8+ {[%emt 0:00:13]} Kd7 {[%emt 0:00:20]} 54. Qxh7 {[%emt 0:00:28]} g5 {[%emt 0:00:01]} 55. Qf5+ {[%emt 0:00:20]} Kd8 {[%emt 0:00:09]} 56. Qe6 {[%emt 0:00:24]} Bc5 {[%emt 0:00:55]} 57. Qg8+ {[%emt 0:00:15]} Kd7 {[%emt 0:00:15]} 58. Qf7+ {[%emt 0:00:35]} Kd8 {[%emt 0:00:07]} 59. Qf6+ {[%emt 0:00:07]} Be7 {[%emt 0:00:39]} 60. Qe6 {[%emt 0:00:43]} Bc5 {[%emt 0:00:06]} 61. Qf6+ {[%emt 0:00:29]} Be7 {[%emt 0:00:01]} 62. Qh8+ {[%emt 0:00:25]} Kc7 {[%emt 0:01:17]} 63. Be6 {[%emt 0:00:32]} Bd8 {[%emt 0:00:42]} 64. Qg7+ {[%emt 0:00:17]} Kd6 {[%emt 0:00:21]} 65. Bd5 {[%emt 0:00:17]} Be7 {[%emt 0:01:02]} 66. Qh8 {[%emt 0:00:44]} Kc7 {[%emt 0:00:45]} 67. Be6 {[%emt 0:00:39]} Bd8 {[%emt 0:00:21]} 68. Qg7+ {[%emt 0:00:15]} Kd6 {[%emt 0:00:25]} 69. Qd7+ {[%emt 0:01:48]} Kc5 {[%emt 0:00:06]} 70. Bd5 {[%emt 0:00:01]} b5 {[%emt 0:01:19]} 71. Qc6+ {[%emt 0:00:09]} Kb4 {[%emt 0:00:20]} 72. Qd6+ {[%emt 0:01:23]} Kc3 {[%emt 0:00:18]} 73. Qxd8 {[%emt 0:01:23]} bxc4 {[%emt 0:00:06]} 74. Qa5+ {[%emt 0:00:22]} Kb3 {[%emt 0:00:57]} 75. Bg8 {[%emt 0:01:04]} Qe4+ {[%emt 0:00:14]} 76. Kh2 {[%emt 0:00:10]} Qd4 {[%emt 0:00:25]} 77. Kg1 {[%emt 0:06:30]} Qd1+ {[%emt 0:00:32]} 78. Kg2 {[%emt 0:00:00]} Qd6 {[%emt 0:00:12]} 79. Qa1 {[%emt 0:00:00]} Qc6+ {[%emt 0:00:30]} 80. Kg1 {[%emt 0:00:00]} Qb5 {[%emt 0:00:11]} 81. Qb1+ {[%emt 0:00:00]} Ka4 {[%emt 0:01:14]} 82. Qa2+ {[%emt 0:00:00]} Kb4 {[%emt 0:00:07]} 83. Qb2+ {[%emt 0:00:00]} Ka4 {[%emt 0:00:18]} 84. Qc3 {[%emt 0:00:00]} Qb1+ {[%emt 0:00:35]} 85. Kh2 {[%emt 0:00:00]} Qa2 {[%emt 0:02:23]} 86. Qxc4+ {[%emt 0:00:00]} 1-0

[Event "1000GM Winter IM Norm-2 2024"]
[Site "Sunnyvale/"]
[Date "2024.01.03"]
[Round "1.4"]
[White "Atwell, Rose"]
[Black "Calderin Gonzalez, Roberto"]
[Result "1/2-1/2"]
[ECO "B01"]
[WhiteElo "2104"]
[BlackElo "2413"]
[Annotator "RC"]
[PlyCount "86"]
[EventDate "2023.12.14"]
[EventType "schev"]
[EventCountry "USA"]
[SourceTitle "playchess.com"]
[Source "ChessBase"]
[SourceQuality "1"]
[TimeControl "5400+30"]

1. e4 {[%emt 0:00:02]} d5 {[%emt 0:00:52]} 2. exd5 {[%emt 0:00:06]} Qxd5 {[%emt 0:00:05]} 3. Nf3 {[%emt 0:00:06]} Bg4 {[%emt 0:01:02]} 4. Be2 {[%emt 0:00:30]} Nc6 {[%emt 0:00:32]} 5. d4 {[%emt 0:01:00]} O-O-O {[%emt 0:00:25]} 6. Be3 {[%emt 0:00:57]} e5 {[%emt 0:08:09]} 7. Nc3 {[%emt 0:00:37]} Bb4 {[%emt 0:04:41]} 8. O-O {[%emt 0:01:11]} Bxc3 {[%emt 0:11:03]} 9. bxc3 {[%emt 0:00:03]} e4 {[%emt 0:00:40]} 10. Nd2 {[%emt 0:08:14]} Bxe2 {[%emt 0:00:17]} 11. Qxe2 {[%emt 0:00:02]} Nf6 {[%emt 0:10:55]} 12. Rfb1 {[%emt 0:04:51]} Qa5 {[%emt 0:07:33]} 13. Qc4 {[%emt 0:10:29]} Qd5 {[%emt 0:00:31]} 14. Qa4 {[%emt 0:01:42]} Qa5 {[%emt 0:00:11]} 15. Qb3 {[%emt 0:01:10]} Qa6 {[%emt 0:00:52]} 16. Qxf7 {[%emt 0:03:41]} Rd7 {[%emt 0:00:02]} 17. Qb3 {[%emt 0:04:22]} Re8 {[%emt 0:00:36]} 18. Nc4 {[%emt 0:04:07]} Nd5 {[%emt 0:00:40]} 19. a4 {[%emt 0:02:44]} Nb6 {[%emt 0:00:13]} 20. Nd2 {[%emt 0:02:32]} Na5 {[%emt 0:02:17]} 21. Qb5 {[%emt 0:03:27]} Nbc4 {[%emt 0:01:00]} 22. Nb3 {[%emt 0:04:38]} Qxb5 {[%emt 0:03:42]} 23. axb5 {[%emt 0:00:03]} b6 {[%emt 0:00:01]} 24. Nxa5 {[%emt 0:03:45]} Nxa5 {[%emt 0:01:37]} 25. Ra4 {[%emt 0:02:18]} Re6 {[%emt 0:00:20]} 26. c4 {[%emt 0:02:58]} c6 {[%emt 0:00:09]} 27. bxc6 {[%emt 0:05:38]} Rxc6 {[%emt 0:00:27]} 28. Rbb4 {[%emt 0:00:20]} Rf6 {[%emt 0:04:01]} 29. d5 {[%emt 0:01:58]} Nc6 {[%emt 0:02:14]} 30. Rb1 {[%emt 0:00:18]} Ne5 {[%emt 0:00:09]} 31. Bd4 {[%emt 0:02:14]} Rf5 {[%emt 0:00:08]} 32. Rba1 {[%emt 0:01:53]} Kb8 {[%emt 0:02:48]} 33. Kf1 {[%emt 0:04:34]} Ng4 {[%emt 0:38:48]} 34. Ke2 {[%emt 0:02:14]} Nxh2 {[%emt 0:00:00]} 35. Rh1 {[%emt 0:02:01]} Ng4 {[%emt 0:01:00]} 36. Rxh7 {[%emt 0:00:39]} Rdf7 {[%emt 0:00:00]} 37. Ra1 {[%emt 0:02:48]} Rxf2+ {[%emt 0:00:00]} 38. Bxf2 {[%emt 0:00:08]} Rxf2+ {[%emt 0:00:00]} 39. Ke1 {[%emt 0:00:12]} Rxg2 {[%emt 0:00:00]} 40. Rxg7 {[%emt 0:03:56]} Rg1+ {[%emt 0:00:00]} 41. Kd2 {[%emt 0:00:25]} e3+ {[%emt 0:00:00]} 42. Ke2 {[%emt 0:00:18]} Rxa1 {[%emt 0:00:00]} 43. Rxg4 {[%emt 0:00:09]} Ra3 {[%emt 0:00:00]} 1/2-1/2

[Event "1000GM Winter IM Norm-2 2024"]
[Site "Sunnyvale/"]
[Date "2024.01.03"]
[Round "1.5"]
[White "Goktepe, Derin"]
[Black "Stopa, Jacek"]
[Result "0-1"]
[ECO "A85"]
[WhiteElo "2187"]
[BlackElo "2344"]
[Annotator "RC"]
[PlyCount "140"]
[EventDate "2023.12.14"]
[EventType "schev"]
[EventCountry "USA"]
[SourceTitle "playchess.com"]
[Source "ChessBase"]
[SourceQuality "1"]
[TimeControl "5400+30"]

1. d4 {[%emt 0:00:05]} g6 {[%emt 0:00:39]} 2. c4 {[%emt 0:01:36]} Bg7 {[%emt 0:01:24]} 3. f3 {[%emt 0:01:10]} f5 {[%emt 0:04:45]} 4. Nc3 {[%emt 0:05:50]} Nf6 {[%emt 0:05:16]} 5. e4 {[%emt 0:05:11]} fxe4 {[%emt 0:00:27]} 6. fxe4 {[%emt 0:00:36]} O-O {[%emt 0:00:08]} 7. Nf3 {[%emt 0:02:53]} d6 {[%emt 0:00:08]} 8. Be2 {[%emt 0:01:14]} e5 {[%emt 0:08:41]} 9. d5 {[%emt 0:07:49]} h6 {[%emt 0:02:29]} 10. Be3 {[%emt 0:04:35]} Ng4 {[%emt 0:02:53]} 11. Bd2 {[%emt 0:01:47]} c6 {[%emt 0:02:18]} 12. Qb3 {[%emt 0:08:36]} Na6 {[%emt 0:06:09]} 13. O-O {[%emt 0:04:52]} Nc5 {[%emt 0:01:42]} 14. Qc2 {[%emt 0:02:16]} a5 {[%emt 0:01:19]} 15. Kh1 {[%emt 0:04:45]} Bd7 {[%emt 0:01:02]} 16. Rac1 {[%emt 0:09:11]} Qe7 {[%emt 0:03:06]} 17. b3 {[%emt 0:04:53]} Kh7 {[%emt 0:01:55]} 18. dxc6 {[%emt 0:02:28]} bxc6 {[%emt 0:00:26]} 19. Rcd1 {[%emt 0:01:18]} Ne6 {[%emt 0:03:16]} 20. Bc1 {[%emt 0:01:35]} Nd4 {[%emt 0:04:23]} 21. Qd2 {[%emt 0:01:42]} Qd8 {[%emt 0:15:54]} 22. h3 {[%emt 0:01:44]} Nf6 {[%emt 0:00:02]} 23. Nxd4 {[%emt 0:03:40]} exd4 {[%emt 0:00:02]} 24. Qxd4 {[%emt 0:04:36]} Nd5 {[%emt 0:02:30]} 25. e5 {[%emt 0:02:04]} dxe5 {[%emt 0:01:37]} 26. Qd2 {[%emt 0:01:27]} Nxc3 {[%emt 0:01:25]} 27. Qxc3 {[%emt 0:00:54]} Rxf1+ {[%emt 0:00:47]} 28. Bxf1 {[%emt 0:02:04]} Qe8 {[%emt 0:02:05]} 29. Bb2 {[%emt 0:00:57]} a4 {[%emt 0:00:19]} 30. Bd3 {[%emt 0:02:38]} axb3 {[%emt 0:01:13]} 31. axb3 {[%emt 0:00:22]} Ra7 {[%emt 0:01:08]} 32. Be4 {[%emt 0:00:32]} Bf5 {[%emt 0:01:00]} 33. Qc2 {[%emt 0:00:57]} Qe6 {[%emt 0:01:50]} 34. Rf1 {[%emt 0:01:55]} Rf7 {[%emt 0:01:25]} 35. Bxf5 {[%emt 0:02:00]} Rxf5 {[%emt 0:04:40]} 36. Rxf5 {[%emt 0:00:17]} gxf5 {[%emt 0:00:36]} 37. g4 {[%emt 0:00:35]} e4 {[%emt 0:01:05]} 38. Bxg7 {[%emt 0:00:43]} Kxg7 {[%emt 0:00:03]} 39. gxf5 {[%emt 0:00:21]} Qxf5 {[%emt 0:00:03]} 40. Qc3+ {[%emt 0:00:12]} Kf7 {[%emt 0:01:32]} 41. Qe3 {[%emt 0:00:47]} h5 {[%emt 0:00:31]} 42. Kg2 {[%emt 0:00:26]} c5 {[%emt 0:01:08]} 43. Kg3 {[%emt 0:01:31]} Qe5+ {[%emt 0:01:29]} 44. Kg2 {[%emt 0:00:36]} Qg7+ {[%emt 0:03:42]} 45. Kf2 {[%emt 0:00:26]} Qb2+ {[%emt 0:00:35]} 46. Kg3 {[%emt 0:00:17]} Qe5+ {[%emt 0:00:10]} 47. Kg2 {[%emt 0:00:18]} Kg6 {[%emt 0:01:24]} 48. Qe2 {[%emt 0:00:33]} Qg5+ {[%emt 0:00:40]} 49. Kf2 {[%emt 0:00:56]} Qf4+ {[%emt 0:00:08]} 50. Ke1 {[%emt 0:01:42]} Qc1+ {[%emt 0:02:10]} 51. Kf2 {[%emt 0:00:18]} Qf4+ {[%emt 0:00:24]} 52. Ke1 {[%emt 0:00:15]} Kg5 {[%emt 0:00:58]} 53. Qg2+ {[%emt 0:00:23]} Kf5 {[%emt 0:00:20]} 54. Ke2 {[%emt 0:00:22]} h4 {[%emt 0:00:45]} 55. Qh1 {[%emt 0:01:53]} Qg3 {[%emt 0:02:05]} 56. Qf1+ {[%emt 0:00:40]} Ke6 {[%emt 0:00:18]} 57. Qf8 {[%emt 0:01:58]} Qd3+ {[%emt 0:00:21]} 58. Kf2 {[%emt 0:00:28]} Qg3+ {[%emt 0:02:01]} 59. Ke2 {[%emt 0:00:13]} Qd3+ {[%emt 0:00:11]} 60. Kf2 {[%emt 0:00:09]} e3+ {[%emt 0:01:05]} 61. Kg1 {[%emt 0:00:54]} Qd1+ {[%emt 0:01:20]} 62. Kg2 {[%emt 0:00:19]} e2 {[%emt 0:03:55]} 63. Qh6+ {[%emt 0:01:29]} Kf5 {[%emt 0:00:25]} 64. Qh7+ {[%emt 0:00:55]} Ke5 {[%emt 0:01:01]} 65. Qg7+ {[%emt 0:00:50]} Ke4 {[%emt 0:00:10]} 66. Qg6+ {[%emt 0:00:17]} Kd4 {[%emt 0:00:25]} 67. Qf6+ {[%emt 0:00:24]} Kd3 {[%emt 0:00:14]} 68. Qf5+ {[%emt 0:00:44]} Kc3 {[%emt 0:00:13]} 69. Qe5+ {[%emt 0:00:26]} Kc2 {[%emt 0:00:25]} 70. Kf2 {[%emt 0:01:05]} Qf1+ {[%emt 0:00:09]} 0-1

[Event "1000GM Winter IM Norm-2 2024"]
[Site "Sunnyvale/"]
[Date "2024.01.03"]
[Round "1.6"]
[White "Dominguez Aguilar, Guillermo"]
[Black "Stevens, Adam B"]
[Result "1-0"]
[ECO "E05"]
[WhiteElo "2319"]
[BlackElo "1878"]
[Annotator "RC"]
[PlyCount "37"]
[EventDate "2023.12.14"]
[EventType "schev"]
[EventCountry "USA"]
[SourceTitle "playchess.com"]
[Source "ChessBase"]
[SourceQuality "1"]
[TimeControl "5400+30"]

1. c4 {[%emt 0:00:07]} e6 {[%emt 0:02:18]} 2. Nf3 {[%emt 0:00:17]} Nf6 {[%emt 0:00:42]} 3. g3 {[%emt 0:00:38]} d5 {[%emt 0:00:48]} 4. Bg2 {[%emt 0:00:12]} dxc4 {[%emt 0:01:45]} 5. O-O {[%emt 0:00:15]} Be7 {[%emt 0:01:47]} 6. Na3 {[%emt 0:01:43]} O-O {[%emt 0:01:55]} 7. Nxc4 {[%emt 0:00:07]} c5 {[%emt 0:00:27]} 8. d4 {[%emt 0:00:03]} Nc6 {[%emt 0:02:01]} 9. dxc5 {[%emt 0:00:30]} Bxc5 {[%emt 0:01:04]} 10. a3 {[%emt 0:00:08]} a6 {[%emt 0:05:48]} 11. b4 {[%emt 0:04:09]} Ba7 {[%emt 0:00:38]} 12. Bb2 {[%emt 0:00:18]} Qe7 {[%emt 0:00:21]} 13. Qc2 {[%emt 0:00:23]} Bd7 {[%emt 0:01:23]} 14. Rad1 {[%emt 0:04:03]} Nd5 {[%emt 0:04:02]} 15. e4 {[%emt 0:11:21]} Nb6 {[%emt 0:03:12]} 16. Nd6 {[%emt 0:00:11]} Be8 {[%emt 0:03:50]} 17. e5 {[%emt 0:04:51]} Nd8 {[%emt 0:11:18]} 18. Rd4 {[%emt 0:06:10]} h6 {[%emt 0:02:53]} 19. Rg4 {[%emt 0:01:30]} 1-0

[Event "1000GM Winter IM Norm-2 2024"]
[Site "Sunnyvale/"]
[Date "2024.01.03"]
[Round "1.7"]
[White "Ramirez, Carlos"]
[Black "Sivakumar, Shaashwath"]
[Result "1-0"]
[ECO "A12"]
[WhiteElo "2190"]
[BlackElo "2205"]
[Annotator "RC"]
[PlyCount "95"]
[EventDate "2023.12.14"]
[EventType "schev"]
[EventCountry "USA"]
[SourceTitle "playchess.com"]
[Source "ChessBase"]
[SourceQuality "1"]
[TimeControl "5400+30"]

1. Nf3 {[%emt 0:00:55]} d5 {[%emt 0:00:07]} 2. c4 {[%emt 0:00:18]} c6 {[%emt 0:00:03]} 3. b3 {[%emt 0:00:09]} Nf6 {[%emt 0:00:25]} 4. Bb2 {[%emt 0:00:06]} Bf5 {[%emt 0:00:09]} 5. g3 {[%emt 0:02:07]} e6 {[%emt 0:00:09]} 6. Bg2 {[%emt 0:00:05]} h6 {[%emt 0:00:49]} 7. O-O {[%emt 0:04:08]} Nbd7 {[%emt 0:00:14]} 8. d3 {[%emt 0:01:49]} Be7 {[%emt 0:00:09]} 9. Nbd2 {[%emt 0:00:16]} O-O {[%emt 0:00:08]} 10. a3 {[%emt 0:07:05]} a5 {[%emt 0:00:08]} 11. Qc2 {[%emt 0:05:48]} Bh7 {[%emt 0:00:16]} 12. Bc3 {[%emt 0:02:05]} Qb8 {[%emt 0:02:45]} 13. Qb2 {[%emt 0:02:28]} Bd6 {[%emt 0:16:13]} 14. b4 {[%emt 0:22:33]} a4 {[%emt 0:00:34]} 15. Rac1 {[%emt 0:08:06]} e5 {[%emt 0:02:42]} 16. cxd5 {[%emt 0:00:50]} cxd5 {[%emt 0:00:28]} 17. d4 {[%emt 0:00:16]} e4 {[%emt 0:01:07]} 18. Ne5 {[%emt 0:00:33]} Nb6 {[%emt 0:23:55]} 19. Rfd1 {[%emt 0:02:17]} Qe8 {[%emt 0:14:34]} 20. Bh3 {[%emt 0:03:53]} Qb5 {[%emt 0:01:06]} 21. Nf1 {[%emt 0:01:33]} Ne8 {[%emt 0:06:23]} 22. Ne3 {[%emt 0:07:35]} Kh8 {[%emt 0:04:49]} 23. f4 {[%emt 0:03:52]} Be7 {[%emt 0:02:11]} 24. Be1 {[%emt 0:02:39]} Bd6 {[%emt 0:04:41]} 25. Rc5 {[%emt 0:02:14]} Bxc5 {[%emt 0:00:18]} 26. dxc5 {[%emt 0:00:09]} Nc4 {[%emt 0:00:46]} 27. N3xc4 {[%emt 0:01:27]} dxc4 {[%emt 0:00:05]} 28. Bd7 {[%emt 0:02:51]} Qa6 {[%emt 0:00:07]} 29. b5 {[%emt 0:00:20]} Qf6 {[%emt 0:02:22]} 30. Bc3 {[%emt 0:01:02]} Qe7 {[%emt 0:02:55]} 31. Bb4 {[%emt 0:00:22]} Qf6 {[%emt 0:01:28]} 32. c6 {[%emt 0:00:14]} Rg8 {[%emt 0:00:06]} 33. Qd4 {[%emt 0:01:02]} bxc6 {[%emt 0:00:25]} 34. Qxc4 {[%emt 0:00:52]} Bf5 {[%emt 0:00:53]} 35. Nxf7+ {[%emt 0:01:50]} Kh7 {[%emt 0:00:06]} 36. bxc6 {[%emt 0:01:04]} Nc7 {[%emt 0:01:00]} 37. Bc3 {[%emt 0:00:47]} Qg6 {[%emt 0:00:05]} 38. Ne5 {[%emt 0:05:37]} Qf6 {[%emt 0:00:09]} 39. Ng4 {[%emt 0:01:39]} Qg6 {[%emt 0:00:28]} 40. Ne5 {[%emt 0:00:19]} Qf6 {[%emt 0:00:04]} 41. Nf7 {[%emt 0:01:05]} Qg6 {[%emt 0:00:14]} 42. Rd6 {[%emt 0:00:37]} Qh5 {[%emt 0:00:21]} 43. Ng5+ {[%emt 0:00:52]} hxg5 {[%emt 0:00:30]} 44. Bxf5+ {[%emt 0:00:08]} Kh8 {[%emt 0:00:07]} 45. Bg4 {[%emt 0:00:39]} Qh7 {[%emt 0:00:13]} 46. fxg5 {[%emt 0:00:09]} Rad8 {[%emt 0:01:18]} 47. Rh6 {[%emt 0:00:41]} Rge8 {[%emt 0:00:05]} 48. Bf5 {[%emt 0:00:36]} 1-0